[Event "44th Chess Olympiad Open 2022"]
[Site "Chennai"]
[Date "2022.08.01"]
[Round "4.39"]
[White "Dornbusch, Tatiana"]
[Black "Barcenilla, Rogelio"]
[Result "1/2-1/2"]
[WhiteElo "2247"]
[BlackElo "2463"]
[Annotator "TA"]
[PlyCount "161"]
[EventDate "2022.??.??"]
[TimeControl "60"]

{[%evp 21,161,19,17,12,37,39,50,16,29,34,44,32,62,42,91,79,91,117,112,112,127,
102,112,105,119,120,236,220,343,339,252,163,186,189,174,174,189,191,245,212,
295,133,129,135,145,164,152,124,182,111,98,0,125,133,254,124,127,124,297,112,
103,105,114,110,141,0,110,116,122,76,80,47,493,517,502,475,457,272,278,278,257,
268,302,256,258,250,294,291,280,272,286,283,291,291,286,267,283,165,172,152,
157,126,300,270,292,279,275,183,183,73,238,239,234,239,287,281,281,267,267,0,
252,241,308,300,445,14,14,14,14,14,14,14,27,0,0,0,0,0,0,0,0,0]} 1. d4 {[%emt 0:
00:00]} Nf6 {[%emt 0:00:06]} 2. Nf3 {[%emt 0:00:51]} g6 {[%emt 0:00:06]} 3. g3
{[%emt 0:00:05]} Bg7 {[%emt 0:00:06]} 4. Bg2 {[%emt 0:00:06]} O-O {[%emt 0:00:
00]} 5. O-O {[%emt 0:00:37]} d6 {[%emt 0:00:05]} 6. c4 {[%emt 0:00:06]} Nc6 {
[%emt 0:00:14]} 7. Nc3 {[%emt 0:00:21]} a6 {[%emt 0:00:06]} 8. h3 {[%emt 0:00:
00]} Rb8 {[%emt 0:00:20]} 9. e4 {[%emt 0:03:53]} b5 {[%emt 0:01:26]} 10. cxb5 {
[%emt 0:00:51] 10.cxb5 was played by the boomers.} axb5 {[%emt 0:00:08]} 11.
Re1 {[%emt 0:00:26]} b4 {[%emt 0:06:35]} 12. Nd5 {[%emt 0:01:10] E63: King's
Indian: Fianchetto: Panno Variation with 7...a6.} Ne8 {[%emt 0:04:46]} 13. Bg5
{[%emt 0:11:38]} h6 {[%emt 0:00:49]} 14. Be3 {[%emt 0:14:11] [#] White is
slightly better.} Bd7 $146 {[%emt 0:11:42]} ({Predecessor:} 14... e6 15. Nf4
Ne7 16. Rc1 Bb7 17. Qc2 Ra8 18. b3 Ra5 19. Bd2 Qa8 20. a4 bxa3 21. Bxa5 Qxa5 {
0-1 (55) Amanov,M (2495)-Becerra Rivero,J (2549) Philadelphia 2011}) 15. Qd2 {
[%emt 0:15:40]} g5 {[%emt 0:07:42]} 16. a3 {[%emt 0:10:06]} Na5 {[%emt 0:01:47]
} 17. Qc2 {[%emt 0:06:46] Against Nb3} (17. axb4 Nb3 18. Qe2 Nxa1 19. Rxa1 c6
$17) 17... b3 {[%emt 0:04:38]} (17... bxa3 $14 {is more appropriate.} 18. Rxa3
Nc6) 18. Qc3 $16 {[%emt 0:01:08]} Ra8 {[%emt 0:01:00]} 19. e5 {[%emt 0:05:11]
[%cal Ye3g5]} c6 {[%emt 0:08:41]} 20. Nb4 {[%emt 0:00:59] White is much more
active.} Rc8 {[%emt 0:00:07]} 21. Rac1 {[%emt 0:02:31]} Nc7 {[%emt 0:01:40]}
22. Bd2 {[%emt 0:09:13]} Nb5 {[%emt 0:02:52]} 23. Qd3 {[%emt 0:06:01]} Re8 {
[%emt 0:16:53]} (23... d5 $16 24. Nxd5 cxd5) 24. Na6 $18 {[%emt 0:03:04]
aiming for a4.} Be6 {[%emt 0:07:14]} (24... Qb6 $142 25. Nc5 dxc5) 25. a4 {
[%emt 0:03:05]} Na7 {[%emt 0:00:17]} 26. Bb4 {[%emt 0:02:21]} Nb7 {[%emt 0:00:
00]} 27. exd6 {[%emt 0:00:53]} exd6 {[%emt 0:00:07][%cal Yc6c5]} 28. Nd2 {
[%emt 0:01:00]} Qb6 {[%emt 0:06:02]} 29. Bc3 {[%emt 0:00:05]} Na5 {[%emt 0:00:
00]} (29... Bd7 $142 30. Nb4 Rxe1+ 31. Rxe1 d5 32. Nxb3 Bf8) 30. Nb4 {[%emt 0:
00:00]} Bd7 {[%emt 0:04:28]} 31. Nc4 {[%emt 0:01:23]} (31. Ne4 $18) 31... Nxc4
$16 {[%emt 0:01:49]} 32. Qxc4 {[%emt 0:00:01]} Be6 {[%emt 0:01:29]} 33. Qd3 {
[%emt 0:00:39]} Bd7 {[%emt 0:00:38]} 34. Kh2 {[%emt 0:00:53]} Rb8 {[%emt 0:00:
00]} (34... Ra8 $16) 35. Na6 {[%emt 0:00:20]} ({White should try} 35. h4 $1 $18
) 35... Ra8 {[%emt 0:00:36]} 36. Nb4 {[%emt 0:00:31]} (36. Rxe8+ $16 Rxe8 37.
Nb4) 36... Rxe1 {[%emt 0:00:30]} (36... Rab8 $1 $11) 37. Rxe1 {[%emt 0:00:05]}
Nc8 {[%emt 0:00:21] [#]} (37... d5 $16) 38. a5 {[%emt 0:00:20]} (38. d5 $1 $18
{[%cal Rd5c6] is the precise move to win.} c5 39. Nc6) 38... Rxa5 {[%emt 0:00:
00]} 39. Nxc6 {[%emt 0:00:46]} Ra4 {[%emt 0:00:26] [#]} (39... Rf5 $16) 40.
Ne7+ $2 {[%emt 0:01:01]} (40. Bd5 $1 $18 {[%cal Yd3g6] Threatening mate with
Qg6!} Bxc6 41. Bxf7+ Kxf7 42. Qf5+ Kg8 43. Qxc8+ Kh7 44. Re7) 40... Nxe7 {
[%emt 0:00:10]} 41. Rxe7 {[%emt 0:01:01]} Qd8 {[%emt 0:30:57]} 42. Re2 {
[%emt 0:06:27]} Qb8 {[%emt 0:00:00]} 43. Re7 $40 {[%emt 0:02:51] White mounts
an attack.} Qd8 {[%emt 0:00:00]} 44. Re1 {[%emt 0:00:47]} Qf6 {[%emt 0:00:00]}
45. Re2 {[%emt 0:09:05]} ({Better is} 45. Kg1) 45... Ra1 {[%emt 0:00:00]} 46.
d5 {[%emt 0:02:49]} Qf5 {[%emt 0:00:00] [#]} ({Black should play} 46... Qd8 $1
$14) 47. Re8+ $3 $18 {[%emt 0:01:11]} Bf8 {[%emt 0:00:00] [#]} 48. Qd4 {
[%emt 0:02:08][%csl Gc3][%cal Rd4h8]} f6 {[%emt 0:00:00]} 49. g4 {[%emt 0:00:
45]} (49. Rd8 $142) 49... Qf4+ {[%emt 0:00:00]} 50. Qxf4 {[%emt 0:00:09]} gxf4
{[%emt 0:00:00]} 51. Rb8 {[%emt 0:02:40]} f5 {[%emt 0:00:00]} 52. Bf3 {[%emt 0:
01:34] Rb7 is the strong threat.} fxg4 {[%emt 0:00:00]} 53. hxg4 {[%emt 0:00:
09]} (53. Bxg4 Bxg4 54. hxg4 Rd1 $16) 53... Kf7 {[%emt 0:00:00]} 54. Rb7 {
[%emt 0:01:50]} ({Don't take} 54. Rxb3 Be7 55. Rb7 Ke8 56. Rb8+ Kf7 $18) 54...
Ke8 {[%emt 0:00:00]} 55. Rxb3 {[%emt 0:00:00]} Be7 {[%emt 0:00:00]} 56. Rb8+ {
[%emt 0:01:20]} Kf7 {[%emt 0:00:00]} 57. Rb7 {[%emt 0:01:13]} Ke8 {[%emt 0:00:
00]} 58. Rb4 {[%emt 0:01:11]} Bg5 {[%emt 0:00:00]} 59. Bd2 {[%emt 0:00:10]} (
59. Rb8+ $142 Ke7 60. Rb6) 59... Ra4 {[%emt 0:00:00]} 60. Rb8+ {[%emt 0:01:39]}
Ke7 {[%emt 0:00:00]} 61. Bc3 {[%emt 0:00:38]} Ra1 $2 {[%emt 0:00:00]} (61...
Bf6 $16 {was called for.} 62. Bxf6+ Kxf6) 62. Kg2 {[%emt 0:00:12]} Rc1 {
[%emt 0:00:00]} 63. Rb7 {[%emt 0:00:00]} Kd8 {[%emt 0:00:00]} 64. Rb4 {[%emt 0:
00:52]} Ra1 {[%emt 0:00:06]} 65. Bd2 {[%emt 0:00:32]} (65. Be2 $18 {is more
deadly.}) 65... Ra4 $2 {[%emt 0:00:38]} (65... Bxg4 $16 66. Bxg4 (66. Bxf4
Bxf3+ 67. Kxf3 Bxf4 $16) 66... f3+ 67. Kxf3 Bxd2) 66. b3 {[%emt 0:00:34]} Rxb4
{[%emt 0:00:43]} 67. Bxb4 {[%emt 0:00:03] Endgame KBB-KBB} Kc7 {[%emt 0:00:14]}
68. Be2 {[%emt 0:00:30]} Be8 {[%emt 0:02:53]} 69. Ba5+ {[%emt 0:00:50]} Kb7 {
[%emt 0:01:03]} 70. Bb4 {[%emt 0:00:36]} Kc7 $1 {[%emt 0:00:09]} 71. Kf3 {
[%emt 0:00:22]} Bg6 {[%emt 0:00:00]} 72. Bd2 {[%emt 0:00:37]} Bc2 {[%emt 0:00:
13]} (72... h5 {might work better.} 73. Bc4 (73. Bxf4 hxg4+ 74. Kg3 Bf6 $18)
73... Bh6 74. Bxf4 hxg4+ 75. Kxg4 Bh5+ 76. Kg3 (76. Kxh5 Bxf4 77. Kg4 Bd2 $16)
76... Bg7) 73. Bc4 $2 {[%emt 0:00:36]} (73. Bxf4 $18 Bxb3 74. Bxg5 hxg5 75. Ke4
) 73... Bd1+ $11 {[%emt 0:00:16]} 74. Ke4 {[%emt 0:00:09]} Bc2+ {[%emt 0:00:49]
} 75. Bd3 {[%emt 0:00:51]} Bxb3 {[%emt 0:00:11]} 76. Bxf4 {[%emt 0:00:26]}
Bxd5+ {[%emt 0:00:00]} 77. Ke3 {[%emt 0:00:28]} Kd7 {[%emt 0:00:29] The
position is equal.} 78. Bxg5 {[%emt 0:00:33]} hxg5 {[%emt 0:00:06]} 79. f4 {
[%emt 0:00:27]} gxf4+ {[%emt 0:00:11]} 80. Kxf4 {[%emt 0:00:02]} Ke7 {[%emt 0:
00:10]} 81. Bc2 {[%emt 0:00:06] White really could win this. Weighted Error
Value: White=0.31/ Black=0.41} 1/2-1/2

[Event "44th Chess Olympiad Open 2022"]
[Site "Chennai"]
[Date "2022.08.01"]
[Round "4.39"]
[White "Verdier, Patrice"]
[Black "Laylo, Darwin"]
[Result "0-1"]
[WhiteElo "2017"]
[BlackElo "2432"]
[Annotator "TA"]
[PlyCount "74"]
[EventDate "2022.??.??"]
[TimeControl "60"]

{[%evp 18,74,15,-21,-14,-4,43,1,-16,-33,-44,-42,-35,-39,-31,-25,-42,-40,-35,
-226,-218,-196,-141,-435,-435,-431,-420,-405,-400,-399,-397,-402,-376,-364,
-310,-309,-303,-301,-177,-177,-165,-165,-165,-165,-165,-224,-165,-165,-165,
-29979,-29980,-29979,-29980,-29979,-29974,-29993,-29990,-29997,-29998]} 1. d4 {
[%emt 0:00:06]} Nf6 {[%emt 0:00:09]} 2. c4 {[%emt 0:00:15]} g6 {[%emt 0:00:10]}
3. Nc3 {[%emt 0:00:37]} d5 {[%emt 0:00:07]} 4. cxd5 {[%emt 0:00:22]} Nxd5 {
[%emt 0:00:02]} 5. e4 {[%emt 0:00:08]} Nxc3 {[%emt 0:00:04]} 6. bxc3 {[%emt 0:
00:00]} Bg7 {[%emt 0:00:07]} 7. Bc4 {[%emt 0:01:05]} c5 {[%emt 0:00:18]} 8. Ne2
{[%emt 0:00:10]} Nc6 {[%emt 0:01:10]} 9. Be3 {[%emt 0:00:09]} O-O {[%emt 0:00:
00]} 10. h4 {[%emt 0:00:50]} Qa5 {[%emt 0:06:00] [#] aiming for ...cxd4. D87:
Exchange Grünfeld: Classical Line: Variations without ...cxd4.} 11. Kf1 {
[%emt 0:00:17]} Rd8 {[%emt 0:01:36]} (11... h5 $11) 12. Qb3 {[%emt 0:18:59]} e6
$1 {[%emt 0:06:18][%cal Rc5d4] [#] The position is equal.} 13. d5 $146 {
[%emt 0:08:43]} (13. dxc5 Ne5 14. Bg5 Nxc4 15. Qxc4 Re8 $15) ({Predecessor:} 
13. e5 Qc7 14. Qc2 Bd7 15. h5 cxd4 16. cxd4 Na5 17. Bd3 Qxc2 18. Bxc2 Bb5 19.
hxg6 hxg6 {1-0 (71) Pushkin,S-Kasantsev,A (2110) Odintsovo 2008}) 13... Ne5 {
[%emt 0:11:44][%cal Yb7b5] ...b5! is the strong threat.} 14. dxe6 {[%emt 0:00:
00]} Nxc4 {[%emt 0:00:15]} 15. exf7+ {[%emt 0:00:16]} Kxf7 {[%emt 0:00:01]} 16.
Qxc4+ {[%emt 0:00:16]} Be6 {[%emt 0:00:03]} 17. Qxc5 {[%emt 0:00:40]} Qxa2 {
[%emt 0:03:07]} (17... Qxc5 18. Bxc5 Rd2 19. Nd4 $14) 18. Qc7+ $2 {[%emt 0:00:
00]} (18. Re1 $1 $15) 18... Kg8 $19 {[%emt 0:00:46] Really sharp!} 19. Re1 {
[%emt 0:03:24]} Bc4 $40 {[%emt 0:16:53] Black has strong attack. This bishop
pair is nice.} (19... Rd7 $19 20. Qc5 Bc4) 20. Bd4 $2 {[%emt 0:00:00] Now
White is beyond hope.} (20. f3 $17) 20... Bxd4 {[%emt 0:00:00]} 21. cxd4 {
[%emt 0:00:08]} Rxd4 {[%emt 0:00:03][%cal Ya2e2]} (21... Rac8 $2 22. Qf4 Rxd4
23. Kg1 Bxe2 24. Qe5 $19) 22. Kg1 {[%emt 0:07:00]} Rxe4 {[%emt 0:00:00]} 23. h5
{[%emt 0:00:57][%cal Yh5g6] Black must now prevent hxg6!} Rxe2 {[%emt 0:00:29]}
24. Rxe2 {[%emt 0:03:11]} Bxe2 {[%emt 0:02:31]} ({And not} 24... Qxe2 25. hxg6
Qe1+ 26. Kh2 $11) 25. hxg6 {[%emt 0:02:16]} Qb1+ {[%emt 0:00:00]} ({Don't take
} 25... hxg6 26. Qh7+ Kf8 27. Qh8+ Ke7 28. Qe5+ (28. Qxa8 Qa1+ 29. Kh2 Qe5+ 30.
Kg1 Qa1+ 31. Kh2 Qe5+ 32. Kg1 Qa1+ $11) 28... Kd7 29. Rh7+ Kc6 30. Qc7+ Kb5 31.
Qxb7+ Ka4 32. Rh4+ Ka5 33. Qxa8 Qa1+ 34. Kh2 Qe5+ 35. g3 $18) 26. Kh2 {[%emt 0:
00:01] Threatening mate with Qf7+.} Qxg6 {[%emt 0:00:00]} 27. Qxb7 {[%emt 0:01:
24]} Re8 {[%emt 0:04:56]} (27... Rd8 $142 {( -> ... Qh5+)} 28. Qb3+ Qf7 29.
Qg3+ Qg7 30. Qb3+ Kh8) 28. Qxa7 {[%emt 0:01:28]} Qh6+ {[%emt 0:13:32]} 29. Kg1
{[%emt 0:01:47]} Qc1+ {[%emt 0:00:04]} 30. Kh2 {[%emt 0:00:08]} Qf4+ {[%emt 0:
00:27]} 31. Kg1 {[%emt 0:02:12] [#]} Bh5 $1 {[%emt 0:06:42][%cal Re8e1]} 32.
Qa2+ {[%emt 0:05:04]} Bf7 {[%emt 0:00:00][%cal Re8e1]} 33. Qa5 {[%emt 0:00:29]
Inhibits Re1+.} (33. Qb1 $19) 33... Re2 {[%emt 0:01:31] Black mates.} 34. Qa8+
{[%emt 0:00:09]} Be8 {[%emt 0:00:33][%cal Re2e1]} 35. Qd5+ {[%emt 0:01:15]} Kg7
{[%emt 0:00:43][%cal Re2e1]} 36. Qb7+ {[%emt 0:01:28]} Bf7 {[%emt 0:00:12]
[%cal Re2e1]} 37. f3 {[%emt 0:00:40]} Qd4+ {[%emt 0:00:28] Weighted Error
Value: White=0.55/Black=0.16 (very precise)} 0-1

[Event "44th Chess Olympiad Open 2022"]
[Site "Chennai"]
[Date "2022.08.01"]
[Round "4.40"]
[White "Ferreira, Jorge Viterbo"]
[Black "Wanyama, Harold"]
[Result "1-0"]
[WhiteElo "2499"]
[BlackElo "2242"]
[Annotator "TA"]
[PlyCount "43"]
[EventDate "2022.??.??"]
[TimeControl "60"]

{[%evp 11,43,8,18,0,24,29,75,63,73,58,72,72,66,68,74,47,41,0,-16,1,0,0,0,-93,
280,275,268,266,273,270,297,281,1235,1099]} 1. c4 {[%emt 0:00:02]} e5 {[%emt 0:
00:00]} 2. g3 {[%emt 0:00:08]} Nf6 {[%emt 0:00:09]} 3. Bg2 {[%emt 0:00:08]} d5
{[%emt 0:00:27]} 4. cxd5 {[%emt 0:00:09]} Nxd5 {[%emt 0:00:07]} 5. Nf3 {
[%emt 0:00:09][%cal Yg1f3,Yf3e1,Ye1d3]} Nc6 {[%emt 0:00:13]} 6. O-O {[%emt 0:
00:10]} Nb6 {[%emt 0:00:07]} 7. b3 {[%emt 0:00:19] A20: English Opening: 1...
e5.} Be7 {[%emt 0:00:07] 7...Be6 is more advanced technology.} 8. Bb2 {[%emt 0:
00:12]} Bf6 {[%emt 0:00:27]} (8... f6 $11) 9. Nc3 $16 {[%emt 0:00:00] White is
better.} Bf5 {[%emt 0:07:14] Against Ne4} 10. Ne1 {[%emt 0:00:30] [#]} Qd7 $146
{[%emt 0:00:35]} ({Predecessor:} 10... e4 11. d3 exd3 12. e4 Bg6 13. Nxd3 O-O
14. Re1 Bd4 15. Rc1 Qf6 16. e5 Qf5 {1-0 (42) Flatz,H (2318) -Beckett,P (1886)
ICCF email 2019}) 11. Ne4 {[%emt 0:00:55]} Be7 {[%emt 0:00:00] Inhibits Nc5.}
12. Nd3 {[%emt 0:00:50]} O-O-O $1 {[%emt 0:17:27]} 13. Rc1 {[%emt 0:11:52]} ({
But not} 13. Nxe5 Nxe5 14. Bxe5 Qe6 $15) 13... f6 {[%emt 0:00:00]} 14. b4 {
[%emt 0:05:31]} (14. f4 $14) 14... Bxe4 $11 {[%emt 0:04:10]} 15. Bxe4 {[%emt 0:
00:17][%cal Yc1c6] aiming for Rxc6!} Nxb4 {[%emt 0:00:27]} 16. Nxb4 {[%emt 0:
15:13]} Bxb4 {[%emt 0:00:46]} 17. Qb3 {[%emt 0:01:09]} (17. Qc2 $11 Qe7 18.
Rfd1) 17... Bd6 $2 {[%emt 0:15:56] [#] This costs Black the game.} (17... Bxd2
$17 {stays on course.} 18. Rc2 Qa4 19. Bf5+ (19. Qf7 Rd7 $17) 19... Kb8) 18.
Qf3 $1 $18 {[%emt 0:01:13] And now Bf5 would win.} Kb8 {[%emt 0:11:33]} 19.
Bxb7 {[%emt 0:00:51]} Qe6 {[%emt 0:01:03]} 20. Bc6 {[%emt 0:11:05] This bishop
pair is nice.} Qxa2 {[%emt 0:10:04]} 21. Ra1 {[%emt 0:05:06]} Qxb2 {[%emt 0:03:
30] [#]} (21... Qe6 22. Bc3 Be7) 22. Qd3 $1 {[%emt 0:00:18] Weighted Error
Value: White=0.15 (very precise) /Black=0.50} 1-0

[Event "44th Chess Olympiad Open 2022"]
[Site "Chennai"]
[Date "2022.08.01"]
[Round "4.40"]
[White "Kawuma, Patrick"]
[Black "Galego, Luis"]
[Result "1/2-1/2"]
[WhiteElo "2270"]
[BlackElo "2462"]
[Annotator "TA"]
[PlyCount "66"]
[EventDate "2022.??.??"]
[TimeControl "60"]

{[%evp 9,66,50,52,37,63,30,70,45,53,4,11,10,25,25,27,25,35,27,34,40,40,28,52,
35,46,0,0,0,0,-8,0,0,0,0,0,-13,12,10,31,31,29,15,36,19,77,75,67,55,63,60,56,57,
51,50,48,60,67,40,54]} 1. c4 {[%emt 0:00:14]} Nf6 {[%emt 0:00:27]} 2. Nf3 {
[%emt 0:01:31]} d6 {[%emt 0:00:52]} 3. Nc3 {[%emt 0:01:18]} Bg4 {[%emt 0:01:11]
} 4. d4 {[%emt 0:02:44]} Bxf3 {[%emt 0:02:35]} 5. gxf3 {[%emt 0:02:26]} Nbd7 {
[%emt 0:00:30]} 6. f4 {[%emt 0:08:00] A53: Old Indian Defence without Nf3.} c6
{[%emt 0:07:26]} 7. Bg2 {[%emt 0:09:41] [#]} Nb6 $146 {[%emt 0:11:48]} ({
Predecessor:} 7... g6 8. O-O Bh6 9. Rb1 Nh5 10. e3 Nb6 11. Qe2 O-O 12. Rd1 d5
13. c5 Nc8 {½-½ (22) Mareco,S (2557)-Anurag,M (2401) Albena 2013}) 8. Qd3 {
[%emt 0:02:31]} d5 {[%emt 0:03:27]} 9. b3 {[%emt 0:00:47]} (9. cxd5 $14 {
feels stronger.} Nfxd5 10. O-O) 9... e6 $11 {[%emt 0:01:00]} 10. O-O {[%emt 0:
00:00]} g6 {[%emt 0:02:49]} 11. c5 {[%emt 0:08:07]} Nc8 {[%emt 0:03:17][%cal
Yb6c8,Yc8e7,Ye7f5,Yf5h4]} 12. b4 {[%emt 0:00:35]} a6 {[%emt 0:02:58]} 13. a4 {
[%emt 0:00:58]} Bg7 {[%emt 0:00:04]} 14. Bd2 {[%emt 0:01:17]} O-O {[%emt 0:01:
47]} 15. b5 {[%emt 0:00:41]} Ne7 {[%emt 0:00:18]} 16. Rfb1 {[%emt 0:00:00]} Qc7
{[%emt 0:07:09]} 17. bxa6 {[%emt 0:06:12]} (17. bxc6 $14 {deserves
consideration.} Nxc6 18. e3) 17... Rxa6 {[%emt 0:00:46]} 18. Ra2 {[%emt 0:00:
00]} Nd7 {[%emt 0:02:16]} 19. Rab2 {[%emt 0:00:57]} Ra7 {[%emt 0:00:06]} 20. e3
{[%emt 0:02:07]} Nf5 {[%emt 0:07:18]} 21. a5 {[%emt 0:01:48]} Nh4 {[%emt 0:00:
00]} 22. Bh1 {[%emt 0:01:00]} h6 {[%emt 0:07:45]} 23. Be1 {[%emt 0:04:27]} Qc8
{[%emt 0:08:29]} 24. Ne2 {[%emt 0:07:16]} Nf5 {[%emt 0:08:11]} 25. Qd1 {
[%emt 0:06:03]} Kh7 {[%emt 0:01:41]} 26. Bg2 {[%emt 0:00:53][%cal Yh1g2,Yg2h3,
Yh3f1,Yf1d3]} f6 {[%emt 0:01:32]} (26... Nh4 $11) 27. Ng3 {[%emt 0:00:00]} Nh4
{[%emt 0:03:09]} 28. Bh3 {[%emt 0:02:34] White is slightly better.} f5 {
[%emt 0:00:01]} 29. Bf1 {[%emt 0:03:08]} Rf7 {[%emt 0:01:20]} 30. Bd3 {[%emt 0:
04:31]} Bf6 {[%emt 0:00:02]} 31. Qe2 {[%emt 0:00:28]} Bd8 {[%emt 0:00:00]} 32.
Ra2 {[%emt 0:02:50]} Nb8 {[%emt 0:00:17]} 33. Rba1 {[%emt 0:02:10] White is
more active.} Na6 {[%emt 0:00:18] Weighted Error Value: White=0.10 (very
precise) /Black=0.11 (very precise)} 1/2-1/2

[Event "44th Chess Olympiad Open 2022"]
[Site "Chennai"]
[Date "2022.08.01"]
[Round "4.40"]
[White "Nsubuga, Haruna"]
[Black "Santos, Jose Guilherme B Li"]
[Result "0-1"]
[WhiteElo "2160"]
[BlackElo "2361"]
[Annotator "TA"]
[PlyCount "78"]
[EventDate "2022.??.??"]
[TimeControl "60"]

{[%evp 9,78,-10,0,0,0,-4,0,-13,0,-22,-19,-14,-34,-40,-22,-31,-31,-89,-90,-339,
-259,-404,-308,-643,-650,-806,-797,-795,-797,-809,-736,-750,-729,-628,-608,
-2070,-2019,-6270,-6270,-5489,-5489,-29973,-29975,-29983,-29984,-29988,-29975,
-29970,-29972,-29972,-29970,-29968,-29965,-29991,-5402,-2416,-2357,-1589,-1663,
-1588,-1481,-2342,-1573,-29970,-6287,-2437,-2150,-29987,-29988,-29990,-29991]} 
1. d4 {[%emt 0:00:17]} Nf6 {[%emt 0:00:16]} 2. c4 {[%emt 0:00:39]} e6 {[%emt 0:
00:00]} 3. a3 {[%emt 0:00:06]} d5 {[%emt 0:02:01]} 4. e3 {[%emt 0:00:59]} Be7 {
[%emt 0:00:15]} 5. Nc3 {[%emt 0:00:34]} O-O {[%emt 0:00:19]} 6. cxd5 {[%emt 0:
00:00] E00: Catalan Bogo-Indian (3 g3 Bb4+).} exd5 {[%emt 0:00:05]} 7. Bd3 {
[%emt 0:00:09]} c5 {[%emt 0:00:27] [#]} 8. Nge2 $146 {[%emt 0:00:34] The
position is equal.} ({Predecessor:} 8. dxc5 Bxc5 9. Na4 Bd6 10. Ne2 Bd7 11. Nd4
Nc6 12. Be2 Ne4 13. Nxc6 Bxc6 14. b4 {0-1 (41) David,L-Boka,R Hungary 2002})
8... Nc6 {[%emt 0:00:21]} 9. Bc2 {[%emt 0:03:51]} Bg4 {[%emt 0:02:57]} 10. f3 {
[%emt 0:00:30]} Bh5 {[%emt 0:01:12]} 11. dxc5 {[%emt 0:08:57]} Bxc5 {[%emt 0:
00:00]} 12. b4 {[%emt 0:04:47]} Bb6 {[%emt 0:01:55]} 13. Nb5 {[%emt 0:02:15]} (
13. Na4 $15) 13... Re8 $17 {[%emt 0:01:30]} 14. Kf2 {[%emt 0:01:46] Loses the
game.} (14. Nbd4 $17) 14... Ne5 {[%emt 0:08:31]} 15. Nbd4 {[%emt 0:02:14]} (15.
h3 {is a better defense.}) 15... Neg4+ {[%emt 0:04:47]} 16. fxg4 $2 {[%emt 0:
00:00]} (16. Kf1) 16... Nxg4+ $19 {[%emt 0:00:13]} 17. Ke1 {[%emt 0:01:04]}
Nxe3 {[%emt 0:00:10]} 18. Bxe3 {[%emt 0:01:20]} Rxe3 {[%emt 0:00:14]} 19. Nf3 {
[%emt 0:06:04]} Bxf3 {[%emt 0:21:39] [#] Remove Defender} 20. gxf3 {[%emt 0:00:
10]} Qh4+ {[%emt 0:00:05]} 21. Kd2 {[%emt 0:00:15]} Rae8 {[%emt 0:00:00]
aiming for ...Qc4.} 22. Re1 {[%emt 0:17:55]} Qc4 {[%emt 0:00:10][%cal Ye3d3]
Strongly threatening ...Rd3+!} 23. Kc1 {[%emt 0:23:39]} Rxe2 {[%emt 0:00:00]}
24. Rxe2 {[%emt 0:00:42]} Rxe2 {[%emt 0:00:05]} 25. Ra2 {[%emt 0:04:57]} Rf2 {
[%emt 0:01:30]} 26. Rb2 {[%emt 0:12:09]} Rf1 {[%emt 0:00:09]} 27. Rb3 {[%emt 0:
00:08]} Rxd1+ {[%emt 0:00:04]} 28. Kxd1 {[%emt 0:00:04]} Qf1+ {[%emt 0:00:00]}
29. Kd2 {[%emt 0:00:03]} Qf2+ {[%emt 0:00:03]} 30. Kc1 {[%emt 0:00:11]} Be3+ {
[%emt 0:00:03]} 31. Kb1 {[%emt 0:00:11]} Bd4 {[%emt 0:00:03]} (31... Qf1+ $142
32. Ka2 Bd4 33. Rd3 Qa1+ 34. Kb3 Qb2+ 35. Ka4 Qxc2+ 36. Rb3 b5+ 37. Kxb5 Qc4+
38. Ka5 Bb6+ 39. Ka4 Qa6#) 32. Rd3 {[%emt 0:00:09]} Qf1+ {[%emt 0:00:21]} 33.
Rd1 {[%emt 0:00:26]} Qc4 {[%emt 0:00:02] Threatens to win with ...Qc3.} 34. Rd3
{[%emt 0:01:06] Inhibits Qc3.} g6 {[%emt 0:00:04]} 35. Kc1 {[%emt 0:00:31] [#]}
Qa2 $1 {[%emt 0:00:08] ...Qb2+ is the strong threat.} 36. a4 {[%emt 0:00:00]} (
36. f4 Bb2+) 36... Qa1+ {[%emt 0:00:15]} (36... Qb2+ $142 37. Kd2 Be5 38. Kd1
Bc3 39. Rxc3 Qxc3 40. f4 Qd4+ 41. Ke2 Qxf4 42. Kd3 Qxh2 43. Bb1 Qg3+ 44. Kd2 h5
45. b5 h4 46. a5 h3 47. b6 axb6 48. Ba2 Qg2+ 49. Ke3 h2 50. Kd4 h1=Q 51. axb6
Qxa2 52. Ke5 Qc4 53. Kf6 Qhh4+ 54. Ke5 Qhf4#) 37. Kd2 {[%emt 0:00:09]} Kg7 {
[%emt 0:00:55] Hoping for ...Be5.} 38. b5 {[%emt 0:01:30]} Bb6 {[%emt 0:00:03]}
39. Bd1 {[%emt 0:01:18]} Qb2+ {[%emt 0:00:08] Weighted Error Value: White=1.17/
Black=0.15 (very precise)} 0-1